fUSD/lending_fUSD_20240702
["ID","MTS","AMOUNT","RATE_DAILY","PERIOD"]
[330905831,1719936633639,-500.0,0.00014999,2]
[330905832,1719936633648,-500.0,0.00014999,2]
[330905833,1719936633657,-530.25491953,0.00014999,2]
[330905834,1719936633668,-500.0,0.00014999,2]
[330905835,1719936633677,-500.0,0.00014999,2]
[330905836,1719936633686,-500.0,0.00014999,2]
[330905837,1719936633695,-500.0,0.00014999,2]
[330905838,1719936633704,-500.0,0.00014999,2]
[330905839,1719936633716,-500.0,0.00014999,2]
[330905840,1719936633726,-500.0,0.00014999,2]
[330905841,1719936633736,-500.0,0.00014999,2]
[330905842,1719936633746,-500.0,0.00014999,2]
[330905843,1719936633755,-500.0,0.00014999,2]
[330905844,1719936633765,-500.0,0.00014999,2]
[330905845,1719936633775,-194.54345661,0.00014999,2]
[330905846,1719936633784,-500.0,0.00014999,2]
[330905847,1719936633793,-500.0,0.00014999,2]
[330905848,1719936633803,-500.0,0.00014999,2]
[330905849,1719936633812,-500.0,0.00014999,2]
[330905850,1719936633821,-500.0,0.00014999,2]
[330905851,1719936633831,-500.0,0.00014999,2]
[330905852,1719936633841,-181.05590465,0.00014999,2]
[330905853,1719936633851,-500.0,0.00014999,2]
[330905854,1719936633860,-500.0,0.00014999,2]
[330905855,1719936633870,-500.0,0.00014999,2]
[330905856,1719936633880,-500.0,0.00014999,2]
[330905857,1719936633891,-500.0,0.00014999,2]
[330905858,1719936633901,-500.0,0.00014999,2]
[330905859,1719936633911,-500.0,0.00014999,2]
[330905860,1719936633920,-500.0,0.00014999,2]
[330905861,1719936633929,-500.0,0.00014999,2]
[330905862,1719936633939,-500.0,0.00014999,2]
[330905863,1719936633949,-500.0,0.00014999,2]
[330905864,1719936633958,-500.0,0.00014999,2]
[330905865,1719936633967,-500.0,0.00014999,2]
[330905866,1719936633977,-500.0,0.00014999,2]
[330905867,1719936633986,-500.0,0.00014999,2]
[330905868,1719936633996,-500.0,0.00014999,2]
[330905869,1719936634012,-500.0,0.00014999,2]
[330905870,1719936634026,-500.0,0.00014999,2]
[330905871,1719936634035,-500.0,0.00014999,2]
[330905872,1719936634045,-500.0,0.00014999,2]
[330905873,1719936634054,-500.0,0.00014999,2]
[330905874,1719936634064,-554.31677139,0.00014999,2]
[330905875,1719936634074,-500.0,0.00014999,2]
[330905876,1719936634084,-500.0,0.00014999,2]
[330905877,1719936634095,-500.0,0.00014999,2]
[330905878,1719936634105,-500.0,0.00014999,2]
[330905879,1719936634116,-500.0,0.00014999,2]
[330905880,1719936634128,-500.0,0.00014999,2]
[330905881,1719936634138,-500.0,0.00014999,2]
[330905882,1719936634148,-500.0,0.00014999,2]
[330905883,1719936634159,-500.0,0.00014999,2]
[330905884,1719936634169,-560.08021254,0.00014999,2]
[330905885,1719936634179,-622.62562392,0.00015,2]
[330905886,1719936634189,-1000.0,0.00015,2]
[330905887,1719936634199,-734297.71379304,0.00015,2]
[330905888,1719936634214,-6201.7,0.00015,2]
[330905889,1719936634230,-3943.51369521,0.00015,2]
[330905890,1719936634244,-2138.05915648,0.00015,2]
[330905891,1719936634256,-4616.32396427,0.00015,2]
[330905892,1719936634269,-593.55351269,0.00015,2]
[330905893,1719936634282,-8463.46291379,0.00015,2]
[330905894,1719936634294,-1156.64319323,0.00015,2]
[330905895,1719936634306,-13792.54513899,0.00015,2]
[330905896,1719936634327,-54559.95864952,0.00015,2]
[330905897,1719936634340,-59071.25034392,0.00015,2]
[330905898,1719936634352,-456769.25839236,0.00015,2]
[330905899,1719936634362,-5000.0,0.00015,2]
[330905900,1719936634373,-3968.79438035,0.00015,2]
[330905901,1719936634382,-182.07,0.00015068,2]
[330905902,1719936634392,-155.0,0.00015287,2]
[330905903,1719936634401,-155.0,0.00015335,2]
[330905904,1719936634411,-173.76628846,0.00015399,2]
[330905905,1719936634421,-800.0,0.00015405,2]
[330905906,1719936634430,-5321.75634858,0.00015626,2]
[330905907,1719936634440,-321.18543506,0.00015626,2]
[330905908,1719936634450,-2049.2818495,0.00015747,2]
[330905909,1719936634459,-673.1,0.00015954,2]
[330905910,1719936634469,-582.53230419,0.00016041,2]
[330905911,1719936634479,-200.0,0.0001634,2]
[330905912,1719936634489,-5321.75634858,0.00016353,2]
[330905913,1719936634498,-321.18543506,0.00016353,2]
[330905914,1719936634508,-182.07,0.00016438,2]
[330905915,1719936634517,-1759.05412823,0.000165,2]
[330905916,1719936634527,-2049.2818495,0.0001664,2]
[330905917,1719936634536,-162.5,0.0001668,2]
[330905918,1719936634546,-298.47,0.00016823,2]
[330905919,1719936634555,-200.0,0.00016844,2]
[330905920,1719936634565,-152.0,0.00016925,2]
[330905921,1719936634575,-13200.15,0.00016986,2]
[330905922,1719936634584,-166.55,0.00017018,2]
[330905923,1719936634594,-3000.0,0.0001703,2]
[330905924,1719936634603,-5321.75634858,0.00017079,2]
[330905925,1719936634613,-321.18543506,0.00017079,2]
[330905926,1719936634626,-800.0,0.00017117,2]
[330905927,1719936634636,-582.53230419,0.00017183,2]
[330905928,1719936634645,-2493.91059926,0.00017199,2]
[330905929,1719936634655,-152.0,0.00017243,2]
[330905930,1719936634666,-6284.2284671,0.0001726,2]
[330905931,1719936634675,-2049.2818495,0.00017533,2]
[330905932,1719936634691,-152.0,0.00017562,2]
[330905933,1719936634700,-166.55,0.0001758,2]
[330905934,1719936634711,-418.1897789,0.00017703,2]
[330905935,1719936634721,-5321.75634858,0.00017805,2]
[330905936,1719936634730,-321.18543506,0.00017805,2]
[330905937,1719936634740,-152.0,0.0001788,2]
[330905938,1719936634751,-3217.16872116,0.0001799,2]
[330905939,1719936634988,-1000.0,0.0001799,2]
[330905940,1719936634998,-1000.0,0.0001799,2]
[330905941,1719936635008,-1000.0,0.0001799,2]
[330905942,1719936635017,-1000.0,0.0001799,2]
[330905943,1719936635026,-1000.0,0.0001799,2]
[330905944,1719936635035,-1000.0,0.0001799,2]
[330905945,1719936635045,-1000.0,0.0001799,2]
[330905946,1719936635054,-1000.0,0.0001799,2]
[330905947,1719936635063,-1000.0,0.0001799,2]
[330905948,1719936635072,-1000.0,0.0001799,2]
[330905949,1719936635082,-1000.0,0.0001799,2]
[330905950,1719936635091,-1000.0,0.0001799,2]
[330905951,1719936635100,-1000.0,0.0001799,2]
[330905952,1719936635111,-1000.0,0.0001799,2]
[330905953,1719936635122,-1000.0,0.0001799,2]
[330905954,1719936635135,-1000.0,0.0001799,2]
[330905955,1719936635144,-1000.0,0.0001799,2]
[330905956,1719936635154,-1000.0,0.0001799,2]
[330905957,1719936635164,-1000.0,0.0001799,2]
[330905958,1719936635173,-1000.0,0.0001799,2]
[330905959,1719936635182,-1000.0,0.0001799,2]
[330905960,1719936635191,-1000.0,0.0001799,2]
[330905961,1719936635201,-1000.0,0.0001799,2]
[330905962,1719936635210,-1000.0,0.0001799,2]
[330905963,1719936635219,-1000.0,0.0001799,2]
[330905964,1719936635229,-1000.0,0.0001799,2]
[330905965,1719936635239,-1000.0,0.0001799,2]
[330905966,1719936635248,-1000.0,0.0001799,2]
[330905967,1719936635257,-1000.0,0.0001799,2]
[330905968,1719936635267,-1000.0,0.0001799,2]
[330905969,1719936635278,-173.0,0.0001799,2]
[330905970,1719936635287,-227.09542874,0.00017999,2]
[330905971,1719936635296,-370.47189794,0.00018,2]
[330905972,1719936635307,-166.55,0.00018142,2]
[330905973,1719936635316,-152.0,0.00018199,2]
[330905974,1719936635326,-673.1,0.00018218,2]
[330905975,1719936635337,-582.53230419,0.00018324,2]
[330905976,1719936635348,-2049.2818495,0.00018426,2]
[330905977,1719936635358,-152.0,0.00018517,2]
[330905978,1719936635368,-5321.75634858,0.00018532,2]
[330905979,1719936635378,-321.18543506,0.00018532,2]
[330905980,1719936635387,-1000.0,0.00018553,2]
[330905981,1719936635397,-1000.0,0.00018553,2]
[330905982,1719936635409,-1000.0,0.00018553,2]
[330905983,1719936635420,-1000.0,0.00018553,2]
[330905984,1719936635430,-1000.0,0.00018553,2]
[330905985,1719936635440,-1000.0,0.00018553,2]
[330905986,1719936635449,-1000.0,0.00018553,2]
[330905987,1719936635459,-1000.0,0.00018553,2]
[330905988,1719936635469,-1000.0,0.00018553,2]
[330905989,1719936635479,-1000.0,0.00018553,2]
[330905990,1719936635491,-1000.0,0.00018553,2]
[330905991,1719936635500,-1000.0,0.00018553,2]
[330905992,1719936635510,-1000.0,0.00018553,2]
[330905993,1719936635520,-1000.0,0.00018553,2]
[330905994,1719936635530,-1000.0,0.00018553,2]
[330905995,1719936635539,-1000.0,0.00018553,2]
[330905996,1719936635549,-1000.0,0.00018553,2]
[330905997,1719936635559,-1000.0,0.00018553,2]
[330905998,1719936635569,-1000.0,0.00018553,2]
[330905999,1719936635578,-1000.0,0.00018553,2]
[330906000,1719936635588,-1000.0,0.00018553,2]
[330906001,1719936635598,-1000.0,0.00018553,2]
[330906002,1719936635608,-1000.0,0.00018553,2]
[330906003,1719936635618,-1000.0,0.00018553,2]
[330906004,1719936635630,-1000.0,0.00018553,2]
[330906005,1719936635642,-154.7959421,0.00018587,2]
[330906006,1719936635652,-150.0,0.000186,2]
[330906007,1719936635663,-166.84523027,0.00018679,2]
[330906008,1719936635674,-298.47,0.00018692,2]
[330906009,1719936635684,-166.55,0.00018704,2]
[330906010,1719936635693,-800.0,0.00018829,2]
[330906011,1719936635703,-152.0,0.00018835,2]
[330906012,1719936635714,-162.54,0.00018849,30]
[330906013,1719936635724,-152.49,0.000189,2]
[330906014,1719936635734,-271.74273737,0.000189,2]
[330906015,1719936635745,-155.21627327,0.00018929,2]
[330906016,1719936635754,-200.0,0.0001895,2]
[330906017,1719936635764,-155.16542117,0.00019,2]
[330906018,1719936635774,-300.0,0.00019,2]
[330906019,1719936635783,-162.5,0.00019063,2]
[330906020,1719936635793,-165.78,0.00019078,2]
[330906021,1719936635802,-301.0638839,0.00019148,2]
[330906022,1719936635811,-152.0,0.00019154,2]
[330906023,1719936635820,-250.0,0.00019178,2]
[330906024,1719936635830,-1390.42,0.0001918,2]
[330906025,1719936635839,-1390.42,0.0001918,2]
[330906026,1719936635849,-1390.42,0.0001918,2]
[330906027,1719936635858,-1390.42,0.0001918,2]
[330906028,1719936635868,-1390.42,0.0001918,2]
[330906029,1719936635877,-1390.42,0.0001918,2]
[330906030,1719936635887,-1390.42,0.0001918,2]
[330906031,1719936635896,-1390.42,0.0001918,2]
[330906032,1719936635905,-157.38305831,0.00019199,2]
[330906033,1719936635915,-5321.75634858,0.00019258,2]
[330906034,1719936635924,-321.18543506,0.00019258,2]
[330906035,1719936635934,-166.55,0.00019266,2]
[330906036,1719936635945,-2049.2818495,0.00019318,2]
[330906037,1719936635954,-7883.47287885,0.00019339,2]
[330906038,1719936635964,-152.0,0.00019472,2]
[330906039,1719936635974,-1250.0,0.000195,2]
[330906040,1719936635984,-3000.0,0.0001953,2]
[330906041,1719936635997,-1390.42,0.00019555,2]
[330906042,1719936636006,-140472.56915721,0.00019565,2]
[330906043,1719936636018,-152.0,0.0001979,2]
[330906044,1719936636028,-166.55,0.00019827,2]
[330906045,1719936636040,-365.91164053,0.00019863,2]
[330906046,1719936636050,-5321.75634858,0.00019985,2]
[330906047,1719936636060,-321.18543506,0.00019985,2]
[330906048,1719936636070,-155.2415831,0.0001999,2]
[330906049,1719936636079,-188.17121959,0.0002,2]
[330906050,1719936636088,-4497.9999991,0.0002,2]
[330906051,1719936636098,-948.75,0.0002,2]
[330906052,1719936636108,-3000.0,0.0002,2]
[330906053,1719936636118,-3000.0,0.0002,2]
[330906054,1719936636127,-3000.0,0.0002,2]
[330906055,1719936636137,-3009.15,0.0002,2]
[330906056,1719936636146,-1488.51574263,0.0002,2]
[330906057,1719936636155,-867.43227348,0.0002,2]
[330906058,1719936636165,-155.29715667,0.0002,2]
[330906059,1719936636174,-6276.62953969,0.0002,2]
[330906060,1719936636184,-327.11942367,0.0002,2]
[330906061,1719936636193,-155.0,0.0002,2]
[330906062,1719936636203,-2000.0,0.0002,2]
[330906063,1719936636212,-352.76885696,0.0002,2]
[330906064,1719936636222,-352.76885696,0.0002,2]
[330906065,1719936636231,-352.76885696,0.0002,2]
[330906066,1719936636242,-352.76885696,0.0002,2]
[330906067,1719936636251,-352.76885696,0.0002,2]
[330906068,1719936636260,-352.76885696,0.0002,2]
[330906069,1719936636270,-352.76885696,0.0002,2]
[330906070,1719936636279,-352.76885696,0.0002,2]
[330906071,1719936636289,-352.76885696,0.0002,2]
[330906072,1719936636298,-352.76885696,0.0002,2]
[330906073,1719936636308,-352.76885696,0.0002,2]
[330906074,1719936636317,-352.76885696,0.0002,2]
[330906075,1719936636327,-352.76885696,0.0002,2]
[330906076,1719936636337,-352.76885696,0.0002,2]
[330906077,1719936636347,-2000.0,0.0002001,2]
[330906078,1719936636357,-2000.0,0.0002002,2]
[330906079,1719936636367,-2000.0,0.0002003,2]
[330906080,1719936636376,-3000.0,0.00020032,2]
[330906081,1719936636386,-2149.115523,0.0002004,2]
[330906082,1719936636396,-152.0,0.00020109,2]
[330906083,1719936636405,-291.0,0.00020113,2]
[330906084,1719936636415,-1198.0,0.00020113,2]
[330906085,1719936636424,-5175.0,0.00020113,2]
[330906086,1719936636434,-1663.0,0.00020113,2]
[330906087,1719936636444,-38221.0,0.00020113,2]
[330906088,1719936636454,-5808.0,0.00020113,2]
[330906089,1719936636465,-2018.03450027,0.000202,2]
[330906090,1719936636475,-2049.2818495,0.00020211,2]
[330906091,1719936636484,-7883.47287885,0.00020227,2]
[330906092,1719936636495,-157.38305831,0.0002032,2]
[330906093,1719936636505,-152.0,0.00020427,2]
[330906094,1719936636514,-673.1,0.00020482,2]
[330906095,1719936636524,-278.20488505,0.000205,2]
[330906096,1719936636534,-179.0,0.000205,2]
[330906097,1719936636544,-762.69475882,0.000205,2]
[330906098,1719936636553,-532.82043486,0.000205,2]
[330906099,1719936636563,-686.84,0.00020522,2]
[330906100,1719936636572,-800.0,0.0002054,2]
[330906101,1719936636582,-298.47,0.00020561,2]
[330906102,1719936636591,-153.80017414,0.00020579,2]
[330906103,1719936636601,-1613.6874867,0.00020711,2]
[330906104,1719936636817,-3708.06886188,0.00020711,2]
[330906105,1719936636827,-321.18543506,0.00020711,2]
[330906106,1719936636837,-155.21627327,0.00020738,2]
[330906107,1719936636847,-152.0,0.00020745,2]
[330906108,1719936636856,-3618.48969862,0.00020878,4]
[330906109,1719936636866,-1723.57139026,0.0002088,2]
[330906110,1719936636883,-551.29288503,0.0002088,2]
[330906111,1719936636894,-606.15,0.0002088,2]
[330906112,1719936636906,-6373.20787758,0.0002088,2]
[330906113,1719936636918,-23493.78705098,0.0002088,2]
[330906114,1719936636927,-152.49,0.0002089,2]
[330906115,1719936636937,-1390.42,0.0002089,2]
[330906116,1719936636947,-225525.054429,0.000209,3]
[330906117,1719936636957,-153.80017414,0.00020927,2]
[330906118,1719936636967,-155.0,0.00021,2]
[330906119,1719936636977,-499.999999,0.00021,5]
[330906120,1719936636987,-1250.0,0.00021,2]
[330906121,1719936636998,-176.42563092,0.00021,2]
[330906122,1719936637007,-619.875804,0.00021,2]
[330906123,1719936637017,-1279.85276849,0.00021,2]
[330906124,1719936637027,-837.82750825,0.00021,2]
[330906125,1719936637036,-188.0894751,0.00021,3]
[330906126,1719936637046,-157.38305831,0.00021009,2]
[330906127,1719936637055,-256.35479986,0.00021012,2]
[330906128,1719936637065,-157.38305831,0.00021034,2]
[330906129,1719936637074,-200.0,0.00021055,2]
[330906130,1719936637084,-152.0,0.00021064,2]
[330906131,1719936637093,-1378.84,0.00021099,2]
[330906132,1719936637103,-48050.47661775,0.000211,2]
[330906133,1719936637114,-3723.16177161,0.000211,2]
[330906134,1719936637126,-1135.31489135,0.000211,2]
[330906135,1719936637138,-7439.79,0.000211,2]
[330906136,1719936637154,-8084.26852636,0.000211,2]
[330906137,1719936637165,-266.95294903,0.000211,2]
[330906172,1719936638239,-582.53230419,0.00019466,2]
[330906173,1719936638249,-352.76885696,0.0002,2]
[330906174,1719936638259,-352.76885696,0.0002,2]
[330906175,1719936638268,-352.76885696,0.0002,2]
[330906176,1719936638278,-352.76885696,0.0002,2]
[330906177,1719936638288,-352.76885696,0.0002,2]
[330906178,1719936638298,-352.76885696,0.0002,2]
[330906179,1719936638308,-352.76885696,0.0002,2]
[330906180,1719936638318,-352.76885696,0.0002,2]
[330906181,1719936638328,-352.76885696,0.0002,2]
[330906182,1719936638340,-352.76885696,0.0002,2]
[330906183,1719936638350,-352.76885696,0.0002,2]
[330906184,1719936638360,-352.76885696,0.0002,2]
[330906185,1719936638370,-352.76885696,0.0002,2]
[330906186,1719936638380,-352.76885696,0.0002,2]
[330906187,1719936638390,-352.76885696,0.0002,2]
[330906188,1719936638399,-352.76885696,0.0002,2]
[330906189,1719936638409,-352.76885696,0.0002,2]
[330906190,1719936638419,-352.76885696,0.0002,2]
[330906191,1719936638429,-352.76885696,0.0002,2]
[330906193,1719936638439,-352.76885696,0.0002,2]
[330906195,1719936638448,-352.76885696,0.0002,2]
[330906197,1719936638458,-352.76885696,0.0002,2]
[330906199,1719936638468,-1070.0,0.00020113,2]
[330906201,1719936638478,-125230.0096658,0.000211,2]
[330906203,1719936638491,-401.07926264,0.000211,2]
[330906205,1719936638503,-300.0,0.000211,2]
[330906207,1719936638515,-3149.98268951,0.000211,2]
[330906210,1719936638526,-666.23816241,0.000211,2]
[330906212,1719936638538,-14405.43268584,0.000211,2]
[330906214,1719936638549,-2294.83299558,0.000211,2]
[330906215,1719936638573,-352.76885696,0.0002,2]
[330906216,1719936638583,-339.74114304,0.000211,2]
[330906217,1719936638595,-1291.06,0.000211,2]
[330906218,1719936638607,-4423.52158867,0.000211,2]
[330906220,1719936640179,-352.76885696,0.0002,2]
[330906221,1719936640189,-352.76885696,0.0002,2]
[330906222,1719936640198,-352.76885696,0.0002,2]
[330906223,1719936640208,-352.76885696,0.0002,2]
[330906224,1719936640218,-262.37044858,0.0002,2]
[330906225,1719936640239,-90.39840838,0.0002,2]
[330906226,1719936640250,-352.76885696,0.0002,2]
[330906227,1719936640259,-352.76885696,0.0002,2]
[330906228,1719936640269,-352.76885696,0.0002,2]
[330906229,1719936640278,-352.76885696,0.0002,2]
[330906230,1719936640287,-5469.62984172,0.000211,2]
[330906231,1719936640313,-1757.67632187,0.000211,2]
[330906232,1719936640364,-253.44497898,0.000211,2]
[330906233,1719936640376,-345.91147168,0.000211,2]
[330906234,1719936640387,-16336.65304499,0.000211,2]
[330906235,1719936640538,-352.76885696,0.0002,2]
[330906236,1719936640548,-27451.71859966,0.000211,2]
[330906237,1719936640598,-255.62400399,0.000211,2]
[330906238,1719936640615,-352.76885696,0.0002,2]
[330906239,1719936640629,-331.39114308,0.000211,2]
[330906240,1719936640640,-250.72130002,0.000211,2]
[330906266,1719936643154,-352.76885696,0.0002,2]
[330906267,1719936643163,-352.76885696,0.0002,2]
[330906268,1719936643172,-352.76885696,0.0002,2]
[330906269,1719936643182,-352.76885696,0.0002,2]
[330906270,1719936643191,-352.76885696,0.0002,2]
[330906271,1719936643200,-352.76885696,0.0002,2]
[330906272,1719936643209,-352.76885696,0.0002,2]
[330906273,1719936643219,-352.76885696,0.0002,2]
[330906274,1719936643228,-352.76885696,0.0002,2]
[330906275,1719936643240,-352.76885696,0.0002,2]
[330906276,1719936643248,-582.53230419,0.00020607,2]
[330906277,1719936643257,-3391.90870598,0.000211,2]
[330906278,1719936643268,-478.6711612,0.000211,2]
[330906279,1719936643280,-2492.56313245,0.000211,2]
[330906280,1719936643291,-35742.82117363,0.000211,2]
[330906281,1719936643302,-1138.50441589,0.000211,2]
[330906282,1719936643331,-352.76885696,0.0002,2]
[330906283,1719936643343,-49.19376525,0.000211,2]
[330906284,1719936643355,-1000.0,0.000211,2]
[330906285,1719936643393,-122000.09227331,0.000211,2]
[330906286,1719936643404,-621.91316261,0.000211,2]
[330906287,1719936643518,-1843.118017,0.000211,2]
[330906288,1719936643582,-352.76885696,0.0002,2]
[330906289,1719936643592,-161.81181513,0.000211,2]
[330906290,1719936643604,-95941.49191209,0.000211,2]
[330906291,1719936643613,-151.0,0.000211,2]
[330906292,1719936643623,-151.87214,0.000211,2]
[330906293,1719936643635,-155.568683,0.000211,2]
[330906294,1719936643645,-151.0,0.000211,2]
[330906296,1719936643654,-151.0,0.000211,2]
[330906298,1719936643663,-155.568683,0.000211,2]
[330906300,1719936643673,-151.0,0.000211,2]
[330906302,1719936643682,-151.0,0.000211,2]
[330906303,1719936643693,-151.0,0.000211,2]
[330906304,1719936643702,-151.542244,0.000211,2]
[330906305,1719936643714,-151.0,0.000211,2]
[330906306,1719936643723,-151.0,0.000211,2]
[330906307,1719936643733,-151.0,0.000211,2]
[330906308,1719936643745,-151.0,0.000211,2]
[330906309,1719936643755,-151.0,0.000211,2]
[330906310,1719936643764,-151.0,0.000211,2]
[330906311,1719936643773,-291.080013,0.000211,2]
[330906312,1719936643783,-291.080013,0.000211,2]
[330906313,1719936643792,-151.0,0.000211,2]
[330906314,1719936643802,-151.0,0.000211,2]
[330906315,1719936643812,-151.0,0.000211,2]
[330906316,1719936643821,-151.0,0.000211,2]
[330906317,1719936643831,-151.0,0.000211,2]
[330906318,1719936643841,-169.479669,0.000211,2]
[330906319,1719936643850,-151.0,0.000211,2]
[330906321,1719936643859,-169.479669,0.000211,2]
[330906323,1719936643869,-151.0,0.000211,2]
[330906324,1719936643879,-151.0,0.000211,2]
[330906325,1719936643888,-151.0,0.000211,2]
[330906326,1719936643898,-452.844759,0.000211,2]
[330906327,1719936643908,-169.84624,0.000211,2]
[330906328,1719936643918,-151.0,0.000211,2]
[330906329,1719936643928,-152.003421,0.000211,2]
[330906330,1719936643938,-452.844759,0.000211,2]
[330906331,1719936643947,-169.84624,0.000211,2]
[330906332,1719936643957,-151.0,0.000211,2]
[330906333,1719936643967,-151.0,0.000211,2]
[330906334,1719936643977,-2049.2818495,0.00021104,2]
[330906335,1719936643988,-7883.47287885,0.00021114,2]
[330906336,1719936644000,-151.0,0.00021213,2]
[330906337,1719936644010,-162.0,0.00021213,2]
[330906338,1719936644020,-260.569,0.00021213,2]
[330906339,1719936644030,-213.0,0.00021213,2]
[330906340,1719936644040,-163.177,0.00021213,2]
[330906341,1719936644050,-190.924,0.00021213,2]
[330906342,1719936644059,-150.0,0.00021213,2]
[330906343,1719936644069,-150.0,0.00021213,2]
[330906344,1719936644078,-297.271,0.00021213,2]
[330906345,1719936644088,-160.194,0.00021213,2]
[330906346,1719936644098,-238.924,0.00021213,2]
[330906347,1719936644109,-150.0,0.00021213,2]
[330906348,1719936644119,-150.0,0.00021213,2]
[330906349,1719936644129,-150.0,0.00021213,2]
[330906350,1719936644139,-156.251,0.00021213,2]
[330906351,1719936644149,-150.0,0.00021213,2]
[330906352,1719936644158,-150.0,0.00021213,2]
[330906353,1719936644168,-150.0,0.00021213,2]
[330906354,1719936644178,-1274.0,0.00021213,2]
[330906355,1719936644187,-1798.492,0.00021213,2]
[330906356,1719936644197,-1830.0,0.00021213,2]
[330906357,1719936644207,-360.0,0.00021213,2]
[330906358,1719936644217,-448.0,0.00021213,2]
[330906359,1719936644227,-166.0,0.00021213,2]
[330906360,1719936644237,-813.0,0.00021213,2]
[330906361,1719936644250,-443.0,0.00021213,2]
[330906362,1719936644260,-618.0,0.00021213,2]
[330906363,1719936644269,-150.0,0.00021213,2]
[330906364,1719936644278,-2416.0,0.00021213,2]
[330906365,1719936644288,-1304.0,0.00021213,2]
[330906366,1719936644297,-3205.0,0.00021213,2]
[330906367,1719936644307,-1987.0,0.00021213,2]
[330906368,1719936644317,-548.0,0.00021213,2]
[330906369,1719936644327,-425.63,0.00021315,2]
[330906370,1719936644339,-500.0,0.00021315,2]
[330906371,1719936644350,-157.38305831,0.00021329,2]
[330906372,1719936644360,-152.60860639,0.00021351,2]
[330906373,1719936644370,-152.0,0.00021382,2]
[330906374,1719936644379,-5321.75634858,0.00021437,2]
[330906375,1719936644389,-321.18543506,0.00021437,2]
[330906376,1719936644399,-162.5,0.00021445,2]
[330906377,1719936644409,-150.0,0.00021497,2]
[330906378,1719936644419,-568520.73740913,0.00021498,7]
[330906379,1719936644429,-166902.0325505,0.00021498,2]
[330906380,1719936644442,-27905.70557583,0.00021498,2]
[330906381,1719936644453,-6556.0,0.00021498,2]
[330906382,1719936644464,-614.98003177,0.00021498,2]
[330906396,1719936646153,-256.65195837,0.0002,2]
[330906398,1719936646165,-96.11689859,0.0002,2]
[330906400,1719936646175,-352.76885696,0.0002,2]
[330906402,1719936646185,-352.76885696,0.0002,2]
[330906404,1719936646195,-352.76885696,0.0002,2]
[330906406,1719936646206,-352.76885696,0.0002,2]
[330906408,1719936646216,-352.76885696,0.0002,2]
[330906410,1719936646226,-352.76885696,0.0002,2]
[330906412,1719936646236,-352.76885696,0.0002,2]
[330906414,1719936646246,-193.87326648,0.0002,2]
[330906415,1719936646258,-158.89559048,0.0002,2]
[330906417,1719936646268,-352.76885696,0.0002,2]
[330906419,1719936646278,-352.76885696,0.0002,2]
[330906421,1719936646289,-151.0,0.000211,2]
[330906423,1719936646299,-20249.05775997,0.00021498,2]
[330906424,1719936646315,-377.33058206,0.00021498,2]
[330906425,1719936646327,-613.53,0.00021498,2]
[330906426,1719936646339,-3418.83395599,0.00021498,2]
[330906427,1719936646349,-151.0,0.00021498,2]
[330906428,1719936646360,-151.0,0.00021498,2]
[330906429,1719936646371,-151.0,0.00021498,2]
[330906430,1719936646380,-151.0,0.00021498,2]
[330906431,1719936646390,-151.0,0.00021498,2]
[330906432,1719936646399,-151.0,0.00021498,2]
[330906433,1719936646409,-151.0,0.00021498,2]
[330906434,1719936646419,-291.080013,0.00021498,2]